[Event "Early-Titled-Tuesday-Blitz-September-05-2023"]
[Site "Chess.com"]
[Date "2023.09.05"]
[Round "10"]
[White "KatakuriDono"]
[Black "TC2304"]
[Result "0-1"]
[WhiteElo "2315"]
[BlackElo "2349"]
[TimeControl "180+1"]
[EndTime "9:52:22 PDT"]
[Termination "TC2304 won by resignation"]

1. d4 {[%clk 0:02:56.8]} 1... d5 {[%clk 0:03:00]} 2. c4 {[%clk 0:02:57]} 2... c6
{[%clk 0:03:00.4]} 3. Nc3 {[%clk 0:02:56.9]} 3... Nf6 {[%clk 0:03:00.8]} 4. cxd5
{[%clk 0:02:57]} 4... cxd5 {[%clk 0:03:00.7]} 5. Bg5 {[%clk 0:02:57.1]} 5... e6
{[%clk 0:02:58.5]} 6. e3 {[%clk 0:02:57.1]} 6... Be7 {[%clk 0:02:58.5]} 7. Bd3
{[%clk 0:02:57.2]} 7... h6 {[%clk 0:02:55]} 8. Bh4 {[%clk 0:02:56.8]} 8... O-O
{[%clk 0:02:55.6]} 9. f4 {[%clk 0:02:56.9]} 9... Nc6 {[%clk 0:02:46.7]} 10. Nf3
{[%clk 0:02:55.2]} 10... a6 {[%clk 0:02:46.2]} 11. Rc1 {[%clk 0:02:54.9]} 11...
Bd7 {[%clk 0:02:42.8]} 12. O-O {[%clk 0:02:54.3]} 12... Rc8 {[%clk 0:02:38.7]}
13. Ne5 {[%clk 0:02:54.4]} 13... b5 {[%clk 0:02:30.2]} 14. g4 {[%clk 0:02:36.6]}
14... Nxe5 {[%clk 0:02:29.1]} 15. fxe5 {[%clk 0:02:35]} 15... Nh7 {[%clk
0:02:29.4]} 16. Bg3 {[%clk 0:02:12.5]} 16... f6 {[%clk 0:02:15.6]} 17. exf6
{[%clk 0:01:57.1]} 17... Rxf6 {[%clk 0:02:08.2]} 18. Qe2 {[%clk 0:01:47.4]}
18... Rxf1+ {[%clk 0:01:50.3]} 19. Rxf1 {[%clk 0:01:47]} 19... Bf6 {[%clk
0:01:51.2]} 20. Bb1 {[%clk 0:01:36.4]} 20... b4 {[%clk 0:01:44.2]} 21. Nd1
{[%clk 0:01:30.4]} 21... Bb5 {[%clk 0:01:42.5]} 22. Qd2 {[%clk 0:01:16.7]} 22...
Bxf1 {[%clk 0:01:41.5]} 23. Kxf1 {[%clk 0:01:17.6]} 23... Qd7 {[%clk 0:01:39]}
24. Qxb4 {[%clk 0:01:11.3]} 24... Rc1 {[%clk 0:01:24.9]} 25. Bxh7+ {[%clk
0:01:08.7]} 25... Kxh7 {[%clk 0:01:24.3]} 26. Qd2 {[%clk 0:01:09.3]} 26... Qc6
{[%clk 0:01:04.3]} 27. Be1 {[%clk 0:01:00.7]} 27... Qc4+ {[%clk 0:01:03]} 28.
Kg1 {[%clk 0:00:56.4]} 28... Rc2 {[%clk 0:01:02]} 0-1

[Event "Early-Titled-Tuesday-Blitz-September-05-2023"]
[Site "Chess.com"]
[Date "2023.09.05"]
[Round "10"]
[White "TrenerChos"]
[Black "merinasian"]
[Result "1-0"]
[WhiteElo "2598"]
[BlackElo "2432"]
[TimeControl "180+1"]
[EndTime "9:52:23 PDT"]
[Termination "TrenerChos won by resignation"]

1. Nf3 {[%clk 0:03:00.2]} 1... Nf6 {[%clk 0:02:58.8]} 2. c4 {[%clk 0:02:59.6]}
2... e6 {[%clk 0:02:58.3]} 3. b3 {[%clk 0:02:58.9]} 3... b6 {[%clk 0:02:57.4]}
4. Bb2 {[%clk 0:02:57.5]} 4... Bb7 {[%clk 0:02:58]} 5. g3 {[%clk 0:02:57.8]}
5... g6 {[%clk 0:02:51.1]} 6. Bg2 {[%clk 0:02:57.8]} 6... Bg7 {[%clk 0:02:51.7]}
7. O-O {[%clk 0:02:58.7]} 7... O-O {[%clk 0:02:52]} 8. d3 {[%clk 0:02:59.6]}
8... d6 {[%clk 0:02:51.2]} 9. Nbd2 {[%clk 0:02:58.7]} 9... Nbd7 {[%clk
0:02:51.6]} 10. Qc2 {[%clk 0:02:58.9]} 10... Qe7 {[%clk 0:02:51.6]} 11. e4
{[%clk 0:02:57.4]} 11... c5 {[%clk 0:02:49.4]} 12. d4 {[%clk 0:02:56.7]} 12...
cxd4 {[%clk 0:02:47.2]} 13. Nxd4 {[%clk 0:02:57.6]} 13... a6 {[%clk 0:02:46.4]}
14. f4 {[%clk 0:02:55.7]} 14... e5 {[%clk 0:02:44.5]} 15. Ne2 {[%clk 0:02:52.8]}
15... Ng4 {[%clk 0:02:34.6]} 16. Qc3 {[%clk 0:02:50.5]} 16... f5 {[%clk
0:02:15.5]} 17. h3 {[%clk 0:02:39.4]} 17... Nh6 {[%clk 0:02:09.1]} 18. Rae1
{[%clk 0:02:35.8]} 18... fxe4 {[%clk 0:02:01.1]} 19. Nxe4 {[%clk 0:02:34.7]}
19... Nf5 {[%clk 0:02:01.2]} 20. Ng5 {[%clk 0:02:31.2]} 20... exf4 {[%clk
0:01:57.5]} 21. Bxb7 {[%clk 0:02:22.2]} 21... Bxc3 {[%clk 0:01:52.9]} 22. Bd5+
{[%clk 0:02:20.7]} 22... Kg7 {[%clk 0:01:52.4]} 23. Bxc3+ {[%clk 0:02:20.1]}
23... Nf6 {[%clk 0:01:51.5]} 24. Nxf4 {[%clk 0:02:17.6]} 24... Qa7 {[%clk
0:01:33.1]} 25. Nfe6+ {[%clk 0:02:13.3]} 25... Kh8 {[%clk 0:01:33.2]} 26. Ne4
{[%clk 0:02:03]} 26... b5+ {[%clk 0:01:32.4]} 27. Kh2 {[%clk 0:02:02.1]} 27...
b4 {[%clk 0:01:31.1]} 28. Ba1 {[%clk 0:01:57.8]} 28... h5 {[%clk 0:01:14.1]} 29.
Nxf6 {[%clk 0:01:53.4]} 29... Rxf6 {[%clk 0:01:14.2]} 30. Bxf6+ {[%clk
0:01:52.3]} 30... Kh7 {[%clk 0:01:14.8]} 31. Ng5+ {[%clk 0:01:52.1]} 31... Kh6
{[%clk 0:01:15]} 32. Ne6 {[%clk 0:01:37.5]} 32... Re8 {[%clk 0:01:05.2]} 33. g4
{[%clk 0:01:29.2]} 33... Ne3 {[%clk 0:00:56.5]} 34. Bg5+ {[%clk 0:01:23.6]}
34... Kh7 {[%clk 0:00:54.8]} 35. Bxe3 {[%clk 0:01:23.8]} 35... Qb8 {[%clk
0:00:49]} 36. Rf7+ {[%clk 0:01:22.5]} 1-0

[Event "Early-Titled-Tuesday-Blitz-September-05-2023"]
[Site "Chess.com"]
[Date "2023.09.05"]
[Round "10"]
[White "GMWSO"]
[Black "Aswathchess"]
[Result "1-0"]
[WhiteElo "3049"]
[BlackElo "2619"]
[TimeControl "180+1"]
[EndTime "9:52:33 PDT"]
[Termination "GMWSO won by checkmate"]

1. b3 {[%clk 0:02:58.1]} 1... e5 {[%clk 0:02:57.9]} 2. Bb2 {[%clk 0:02:59]} 2...
Nc6 {[%clk 0:02:57.2]} 3. e3 {[%clk 0:02:52.2]} 3... Nf6 {[%clk 0:02:56.8]} 4.
Bb5 {[%clk 0:02:50.2]} 4... Bd6 {[%clk 0:02:57.1]} 5. Na3 {[%clk 0:02:48.9]}
5... a6 {[%clk 0:02:56.7]} 6. Bxc6 {[%clk 0:02:48.4]} 6... dxc6 {[%clk
0:02:57.6]} 7. Nc4 {[%clk 0:02:48.9]} 7... Qe7 {[%clk 0:02:58.2]} 8. a4 {[%clk
0:02:49.1]} 8... O-O {[%clk 0:02:56.5]} 9. a5 {[%clk 0:02:47.6]} 9... Bg4 {[%clk
0:02:54.8]} 10. f3 {[%clk 0:02:44.1]} 10... Be6 {[%clk 0:02:52.5]} 11. Nxe5
{[%clk 0:02:22.7]} 11... Nh5 {[%clk 0:02:49]} 12. Nd3 {[%clk 0:01:39.8]} 12...
Qh4+ {[%clk 0:02:48]} 13. Nf2 {[%clk 0:01:39.6]} 13... Bxh2 {[%clk 0:02:24.3]}
14. f4 {[%clk 0:01:35.2]} 14... Ng3 {[%clk 0:01:47.8]} 15. Nf3 {[%clk
0:01:30.9]} 15... Nxh1 {[%clk 0:01:47.8]} 16. Nxh4 {[%clk 0:01:29.5]} 16... Bg3
{[%clk 0:01:48.3]} 17. Qf3 {[%clk 0:01:00.8]} 17... Bxh4 {[%clk 0:01:43.9]} 18.
g3 {[%clk 0:00:54.1]} 18... Nxg3 {[%clk 0:01:42.7]} 19. O-O-O {[%clk 0:00:48.8]}
19... f5 {[%clk 0:01:31.5]} 20. Rg1 {[%clk 0:00:47.6]} 20... Bd5 {[%clk
0:01:31.6]} 21. Rxg3 {[%clk 0:00:41.8]} 21... Bxf3 {[%clk 0:01:26.1]} 22. Rxg7+
{[%clk 0:00:41.6]} 22... Kh8 {[%clk 0:01:26.3]} 23. Rg5+ {[%clk 0:00:07.1]}
23... Rf6 {[%clk 0:01:20.6]} 24. Bxf6# {[%clk 0:00:08]} 1-0

[Event "Early-Titled-Tuesday-Blitz-September-05-2023"]
[Site "Chess.com"]
[Date "2023.09.05"]
[Round "10"]
[White "NovozhilovSemen"]
[Black "Manukyan_Artak"]
[Result "1-0"]
[WhiteElo "2578"]
[BlackElo "2457"]
[TimeControl "180+1"]
[EndTime "9:52:33 PDT"]
[Termination "NovozhilovSemen won by resignation"]

1. d4 {[%clk 0:03:00.9]} 1... d5 {[%clk 0:02:58.2]} 2. c4 {[%clk 0:03:00.3]}
2... dxc4 {[%clk 0:02:58.5]} 3. e3 {[%clk 0:03:00.4]} 3... e5 {[%clk 0:02:58.3]}
4. Bxc4 {[%clk 0:03:00.4]} 4... exd4 {[%clk 0:02:58.7]} 5. exd4 {[%clk
0:03:00.6]} 5... Nf6 {[%clk 0:02:58.4]} 6. Nf3 {[%clk 0:03:01]} 6... Be7 {[%clk
0:02:54]} 7. h3 {[%clk 0:03:01.2]} 7... O-O {[%clk 0:02:53.7]} 8. O-O {[%clk
0:03:01.6]} 8... a6 {[%clk 0:02:52.1]} 9. a3 {[%clk 0:03:00.3]} 9... b5 {[%clk
0:02:51.9]} 10. Ba2 {[%clk 0:03:00.2]} 10... Bb7 {[%clk 0:02:52.3]} 11. Nc3
{[%clk 0:03:00.8]} 11... Nbd7 {[%clk 0:02:50.1]} 12. Qd3 {[%clk 0:03:00.8]}
12... Nb6 {[%clk 0:02:48.8]} 13. Rd1 {[%clk 0:03:00.3]} 13... c5 {[%clk
0:02:47.6]} 14. dxc5 {[%clk 0:02:39.4]} 14... Qxd3 {[%clk 0:02:45.4]} 15. Rxd3
{[%clk 0:02:40.3]} 15... Bxc5 {[%clk 0:02:45.7]} 16. Bf4 {[%clk 0:02:37.4]}
16... Ne4 {[%clk 0:02:36.3]} 17. Nxe4 {[%clk 0:01:07.6]} 17... Bxe4 {[%clk
0:02:37.2]} 18. Rd2 {[%clk 0:01:08]} 18... Bxf3 {[%clk 0:02:32.2]} 19. gxf3
{[%clk 0:01:08.9]} 19... Rad8 {[%clk 0:02:32]} 20. Rad1 {[%clk 0:01:08.7]} 20...
Rxd2 {[%clk 0:02:29.2]} 21. Rxd2 {[%clk 0:01:09.6]} 21... Be7 {[%clk 0:02:18.9]}
22. Re2 {[%clk 0:01:00.8]} 22... Bf6 {[%clk 0:02:17.6]} 23. b3 {[%clk
0:00:43.9]} 23... Nd5 {[%clk 0:02:11.9]} 24. Bd2 {[%clk 0:00:39.5]} 24... Rc8
{[%clk 0:01:58.6]} 25. b4 {[%clk 0:00:28.5]} 25... Nb6 {[%clk 0:01:57.1]} 26.
Be3 {[%clk 0:00:28.1]} 26... Nc4 {[%clk 0:01:57]} 27. Bc5 {[%clk 0:00:27.6]}
27... Nxa3 {[%clk 0:01:51]} 28. Bd5 {[%clk 0:00:27.4]} 28... a5 {[%clk
0:01:41.9]} 29. bxa5 {[%clk 0:00:28.3]} 29... Nc4 {[%clk 0:01:38.4]} 30. a6
{[%clk 0:00:26.7]} 30... g5 {[%clk 0:01:34.5]} 31. a7 {[%clk 0:00:26.3]} 1-0

[Event "Early-Titled-Tuesday-Blitz-September-05-2023"]
[Site "Chess.com"]
[Date "2023.09.05"]
[Round "10"]
[White "szachuspl"]
[Black "IngOscarArdila"]
[Result "1-0"]
[WhiteElo "2546"]
[BlackElo "2406"]
[TimeControl "180+1"]
[EndTime "9:52:35 PDT"]
[Termination "szachuspl won by resignation"]

1. d4 {[%clk 0:03:00.9]} 1... Nf6 {[%clk 0:02:59.7]} 2. Bg5 {[%clk 0:03:00.6]}
2... e6 {[%clk 0:02:59.3]} 3. e4 {[%clk 0:03:00.2]} 3... h6 {[%clk 0:02:59.7]}
4. Bxf6 {[%clk 0:03:00.1]} 4... Qxf6 {[%clk 0:03:00.6]} 5. c3 {[%clk 0:02:59.3]}
5... d6 {[%clk 0:03:00.8]} 6. Nf3 {[%clk 0:02:58.9]} 6... e5 {[%clk 0:02:59.1]}
7. h3 {[%clk 0:02:57]} 7... Nd7 {[%clk 0:02:58.6]} 8. Bc4 {[%clk 0:02:57]} 8...
Be7 {[%clk 0:02:58]} 9. O-O {[%clk 0:02:56.8]} 9... O-O {[%clk 0:02:58.2]} 10.
Nbd2 {[%clk 0:02:57.3]} 10... Re8 {[%clk 0:02:58.6]} 11. a4 {[%clk 0:02:57]}
11... Nf8 {[%clk 0:02:58.2]} 12. a5 {[%clk 0:02:56.9]} 12... a6 {[%clk
0:02:57.5]} 13. Re1 {[%clk 0:02:55.1]} 13... Ng6 {[%clk 0:02:57.5]} 14. Qb3
{[%clk 0:02:44.3]} 14... Nf4 {[%clk 0:02:53.6]} 15. Bf1 {[%clk 0:02:40.3]} 15...
Bf8 {[%clk 0:02:35.8]} 16. Kh2 {[%clk 0:02:39.8]} 16... c5 {[%clk 0:02:27.5]}
17. dxe5 {[%clk 0:02:38.7]} 17... dxe5 {[%clk 0:02:23.9]} 18. g3 {[%clk
0:02:38.6]} 18... Ng6 {[%clk 0:02:13.1]} 19. Bg2 {[%clk 0:02:38.5]} 19... Qc6
{[%clk 0:01:53.6]} 20. Kg1 {[%clk 0:02:32.3]} 20... Be6 {[%clk 0:01:53.5]} 21.
Qa4 {[%clk 0:02:27.5]} 21... Qxa4 {[%clk 0:01:43]} 22. Rxa4 {[%clk 0:02:26.8]}
22... Bb3 {[%clk 0:01:42.8]} 23. Ra3 {[%clk 0:02:24.6]} 23... c4 {[%clk
0:01:41]} 24. Raa1 {[%clk 0:02:23.4]} 24... Rad8 {[%clk 0:01:41]} 25. Nxb3
{[%clk 0:02:22.2]} 25... cxb3 {[%clk 0:01:40.2]} 26. Bf1 {[%clk 0:02:22.1]}
26... Rc8 {[%clk 0:01:29.5]} 27. Ra4 {[%clk 0:02:20.6]} 27... Rc5 {[%clk
0:01:28.7]} 28. Bc4 {[%clk 0:02:20.2]} 28... Rd8 {[%clk 0:01:20.8]} 29. Bd5
{[%clk 0:02:19.4]} 29... Rd7 {[%clk 0:01:18.8]} 30. Re2 {[%clk 0:02:16.8]} 30...
Rdc7 {[%clk 0:01:13.3]} 31. Bxb3 {[%clk 0:02:16.7]} 31... Be7 {[%clk 0:01:06.3]}
32. Bd5 {[%clk 0:02:16.3]} 32... Kf8 {[%clk 0:01:06]} 33. h4 {[%clk 0:02:16.2]}
33... Bd6 {[%clk 0:01:02.6]} 34. Rd2 {[%clk 0:02:12.4]} 34... Ke7 {[%clk
0:01:00.1]} 35. h5 {[%clk 0:02:10.3]} 35... Nf8 {[%clk 0:01:00.2]} 36. Nh4
{[%clk 0:02:10.3]} 36... g6 {[%clk 0:00:59.7]} 37. hxg6 {[%clk 0:02:10.3]} 37...
fxg6 {[%clk 0:01:00.2]} 38. Nf3 {[%clk 0:02:10.2]} 38... Rd7 {[%clk 0:00:42.2]}
39. Kg2 {[%clk 0:02:07.7]} 39... Bc7 {[%clk 0:00:41]} 40. Bxb7 {[%clk
0:02:01.7]} 40... Rxd2 {[%clk 0:00:38.6]} 41. Nxd2 {[%clk 0:02:01.8]} 41... Rxa5
{[%clk 0:00:39.2]} 42. Rxa5 {[%clk 0:02:01.7]} 42... Bxa5 {[%clk 0:00:40.1]} 43.
Bxa6 {[%clk 0:02:02.2]} 43... Kd6 {[%clk 0:00:40.5]} 44. Nc4+ {[%clk 0:02:00.3]}
44... Kc5 {[%clk 0:00:41.1]} 45. Nxa5 {[%clk 0:02:00.3]} 45... Kb6 {[%clk
0:00:41.6]} 46. Nc4+ {[%clk 0:01:59.5]} 46... Kxa6 {[%clk 0:00:41.4]} 47. Nxe5
{[%clk 0:01:59.9]} 47... Kb5 {[%clk 0:00:41.5]} 48. f4 {[%clk 0:01:57.7]} 48...
Kc5 {[%clk 0:00:41.8]} 49. Kf3 {[%clk 0:01:57.8]} 49... Kd6 {[%clk 0:00:41]} 50.
b4 {[%clk 0:01:57.8]} 50... g5 {[%clk 0:00:39.8]} 51. Nf7+ {[%clk 0:01:57.8]}
51... Ke6 {[%clk 0:00:39.3]} 52. Nxh6 {[%clk 0:01:58.7]} 52... gxf4 {[%clk
0:00:39.5]} 53. gxf4 {[%clk 0:01:59.5]} 53... Kf6 {[%clk 0:00:39.4]} 54. Ng4+
{[%clk 0:01:58.2]} 54... Ke6 {[%clk 0:00:39.4]} 55. f5+ {[%clk 0:01:57.4]} 1-0

[Event "Early-Titled-Tuesday-Blitz-September-05-2023"]
[Site "Chess.com"]
[Date "2023.09.05"]
[Round "10"]
[White "hsd2016"]
[Black "MarijaKuznecova"]
[Result "1-0"]
[WhiteElo "2275"]
[BlackElo "2360"]
[TimeControl "180+1"]
[EndTime "9:52:35 PDT"]
[Termination "hsd2016 won by checkmate"]

1. e4 {[%clk 0:03:00.9]} 1... c5 {[%clk 0:02:59.8]} 2. Nf3 {[%clk 0:02:59.7]}
2... d6 {[%clk 0:02:59.8]} 3. d4 {[%clk 0:02:58.7]} 3... cxd4 {[%clk 0:03:00.7]}
4. Nxd4 {[%clk 0:02:59.4]} 4... Nf6 {[%clk 0:03:00.9]} 5. Nc3 {[%clk 0:02:49.2]}
5... a6 {[%clk 0:03:00.7]} 6. h3 {[%clk 0:02:47.2]} 6... e5 {[%clk 0:02:58.6]}
7. Nf3 {[%clk 0:02:45.3]} 7... b5 {[%clk 0:02:55.9]} 8. a3 {[%clk 0:02:44.2]}
8... Bb7 {[%clk 0:02:51.8]} 9. Bg5 {[%clk 0:02:43.1]} 9... Be7 {[%clk
0:02:50.8]} 10. Bd3 {[%clk 0:02:38.5]} 10... h6 {[%clk 0:02:50.1]} 11. Bxf6
{[%clk 0:02:35.3]} 11... Bxf6 {[%clk 0:02:51]} 12. Qd2 {[%clk 0:02:35.1]} 12...
Nd7 {[%clk 0:02:46.1]} 13. O-O {[%clk 0:02:31.6]} 13... Nb6 {[%clk 0:02:44.2]}
14. a4 {[%clk 0:02:27.6]} 14... b4 {[%clk 0:02:40.2]} 15. Ne2 {[%clk 0:02:27.5]}
15... a5 {[%clk 0:02:37.7]} 16. Bb5+ {[%clk 0:02:27.8]} 16... Ke7 {[%clk
0:02:30.4]} 17. Ng3 {[%clk 0:02:18.4]} 17... g6 {[%clk 0:02:30.8]} 18. Rad1
{[%clk 0:02:17]} 18... Qc7 {[%clk 0:02:24.8]} 19. Nh2 {[%clk 0:02:02.4]} 19...
Bg5 {[%clk 0:02:23.6]} 20. f4 {[%clk 0:02:00.7]} 20... Bxf4 {[%clk 0:02:20.4]}
21. Rxf4 {[%clk 0:01:57.3]} 21... exf4 {[%clk 0:02:21.3]} 22. Qxf4 {[%clk
0:01:58]} 22... Qc5+ {[%clk 0:02:14.4]} 23. Kh1 {[%clk 0:01:57.2]} 23... Qe5
{[%clk 0:02:12.8]} 24. Qe3 {[%clk 0:01:55.7]} 24... Nd5 {[%clk 0:01:58.1]} 25.
Qd2 {[%clk 0:01:55.2]} 25... Qxg3 {[%clk 0:01:38.4]} 26. exd5 {[%clk 0:01:51.9]}
26... Kf8 {[%clk 0:01:32.2]} 27. Qd4 {[%clk 0:01:51.1]} 27... Qe5 {[%clk
0:01:31.4]} 28. Qb6 {[%clk 0:01:50.9]} 28... Qe7 {[%clk 0:01:26.2]} 29. Nf3
{[%clk 0:01:46.8]} 29... Kg7 {[%clk 0:01:23.5]} 30. Re1 {[%clk 0:01:46.5]} 30...
Qxe1+ {[%clk 0:00:54.7]} 31. Nxe1 {[%clk 0:01:46.4]} 31... Bxd5 {[%clk
0:00:55.2]} 32. Qd4+ {[%clk 0:01:45.5]} 32... Kh7 {[%clk 0:00:54.1]} 33. Qxd5
{[%clk 0:01:45.4]} 33... Kg7 {[%clk 0:00:52.7]} 34. Nf3 {[%clk 0:01:43.9]} 34...
Rac8 {[%clk 0:00:51.7]} 35. Nd4 {[%clk 0:01:42.7]} 35... Rhd8 {[%clk 0:00:49.8]}
36. Bc4 {[%clk 0:01:39.9]} 36... Rd7 {[%clk 0:00:48.8]} 37. Bb5 {[%clk
0:01:32.2]} 37... Re7 {[%clk 0:00:48.4]} 38. Qxd6 {[%clk 0:01:30.8]} 38... Re1+
{[%clk 0:00:48.4]} 39. Kh2 {[%clk 0:01:30.4]} 39... b3 {[%clk 0:00:47.3]} 40.
cxb3 {[%clk 0:01:29]} 40... Rcc1 {[%clk 0:00:47.3]} 41. Nf3 {[%clk 0:01:28.9]}
41... Rh1+ {[%clk 0:00:46.5]} 42. Kg3 {[%clk 0:01:29]} 42... h5 {[%clk
0:00:45.9]} 43. Qe5+ {[%clk 0:01:27.8]} 43... Kh6 {[%clk 0:00:45.3]} 44. Qh8#
{[%clk 0:01:27.5]} 1-0

[Event "Early-Titled-Tuesday-Blitz-September-05-2023"]
[Site "Chess.com"]
[Date "2023.09.05"]
[Round "10"]
[White "angryspacevoid"]
[Black "AquivaRubinstein"]
[Result "0-1"]
[WhiteElo "2604"]
[BlackElo "2489"]
[TimeControl "180+1"]
[EndTime "9:52:39 PDT"]
[Termination "AquivaRubinstein won by resignation"]

1. e4 {[%clk 0:03:00.9]} 1... Nf6 {[%clk 0:02:58.3]} 2. e5 {[%clk 0:03:00.5]}
2... Nd5 {[%clk 0:02:58.3]} 3. c4 {[%clk 0:03:00.2]} 3... Nb6 {[%clk 0:02:58]}
4. d4 {[%clk 0:03:00.7]} 4... d6 {[%clk 0:02:58.1]} 5. f4 {[%clk 0:03:00.5]}
5... dxe5 {[%clk 0:02:57.5]} 6. fxe5 {[%clk 0:03:01.4]} 6... c5 {[%clk
0:02:57.6]} 7. d5 {[%clk 0:02:56.5]} 7... e6 {[%clk 0:02:58]} 8. Nf3 {[%clk
0:02:41.2]} 8... exd5 {[%clk 0:02:55.5]} 9. cxd5 {[%clk 0:02:42.1]} 9... Qxd5
{[%clk 0:02:51.8]} 10. Bb5+ {[%clk 0:02:41.3]} 10... Bd7 {[%clk 0:02:49.8]} 11.
Bxd7+ {[%clk 0:02:32.2]} 11... N8xd7 {[%clk 0:02:42.9]} 12. Qe2 {[%clk
0:02:29.8]} 12... Qc4 {[%clk 0:02:37.2]} 13. Qe3 {[%clk 0:02:27.5]} 13... Be7
{[%clk 0:02:34.2]} 14. Nbd2 {[%clk 0:02:25.8]} 14... Qa6 {[%clk 0:02:29.4]} 15.
Rf1 {[%clk 0:01:58.4]} 15... O-O-O {[%clk 0:02:23.6]} 16. a4 {[%clk 0:01:57.4]}
16... Nd5 {[%clk 0:02:18.6]} 17. Qb3 {[%clk 0:01:46.6]} 17... Nb4 {[%clk
0:02:17.2]} 18. Kf2 {[%clk 0:01:45.7]} 18... c4 {[%clk 0:01:54.5]} 19. Nxc4
{[%clk 0:01:37.9]} 19... Nc5 {[%clk 0:01:52.7]} 20. Qc3 {[%clk 0:01:31.2]} 20...
Rd3 {[%clk 0:01:48.3]} 21. Nd6+ {[%clk 0:01:27.2]} 21... Bxd6 {[%clk 0:01:45]}
22. Qxb4 {[%clk 0:01:27]} 22... Rxf3+ {[%clk 0:01:30.3]} 23. Kxf3 {[%clk
0:01:05.5]} 23... Qxf1+ {[%clk 0:01:28.2]} 24. Kg3 {[%clk 0:01:01]} 24... Bxe5+
{[%clk 0:01:22.5]} 25. Kh3 {[%clk 0:01:00.9]} 25... Qf5+ {[%clk 0:01:13.5]} 26.
Kh4 {[%clk 0:00:59.2]} 26... Bf6+ {[%clk 0:01:01.9]} 27. Kg3 {[%clk 0:00:57.3]}
27... Ne4+ {[%clk 0:01:00.3]} 28. Qxe4 {[%clk 0:00:56.2]} 28... Qxe4 {[%clk
0:01:00.4]} 29. Bf4 {[%clk 0:00:54.1]} 29... Be5 {[%clk 0:00:51.1]} 30. Bxe5
{[%clk 0:00:53.1]} 30... Qxe5+ {[%clk 0:00:51]} 31. Kf3 {[%clk 0:00:52]} 31...
Rd8 {[%clk 0:00:48]} 0-1

[Event "Early-Titled-Tuesday-Blitz-September-05-2023"]
[Site "Chess.com"]
[Date "2023.09.05"]
[Round "10"]
[White "mamey78"]
[Black "GaalZsoka"]
[Result "0-1"]
[WhiteElo "2576"]
[BlackElo "2486"]
[TimeControl "180+1"]
[EndTime "9:52:41 PDT"]
[Termination "GaalZsoka won by resignation"]

1. e4 {[%clk 0:03:00.9]} 1... c6 {[%clk 0:02:59.9]} 2. d4 {[%clk 0:03:00.7]}
2... g6 {[%clk 0:03:00]} 3. Nc3 {[%clk 0:03:00.4]} 3... d5 {[%clk 0:02:59.6]} 4.
Nf3 {[%clk 0:03:01.3]} 4... Bg7 {[%clk 0:02:59.8]} 5. h3 {[%clk 0:03:01.3]} 5...
dxe4 {[%clk 0:02:59.8]} 6. Nxe4 {[%clk 0:03:02.2]} 6... Nd7 {[%clk 0:03:00.3]}
7. Bc4 {[%clk 0:03:01.4]} 7... Ngf6 {[%clk 0:02:58.7]} 8. Ng3 {[%clk 0:03:01.1]}
8... O-O {[%clk 0:02:56.5]} 9. O-O {[%clk 0:03:01.3]} 9... a5 {[%clk 0:02:49.6]}
10. a4 {[%clk 0:03:00.2]} 10... Nb6 {[%clk 0:02:47.6]} 11. Bb3 {[%clk
0:02:59.9]} 11... Nbd5 {[%clk 0:02:47.5]} 12. Re1 {[%clk 0:02:58]} 12... Qc7
{[%clk 0:02:42.4]} 13. Bg5 {[%clk 0:02:54.4]} 13... h6 {[%clk 0:02:39.5]} 14.
Bd2 {[%clk 0:02:54.4]} 14... b6 {[%clk 0:02:22.6]} 15. Ne5 {[%clk 0:02:49.6]}
15... Bb7 {[%clk 0:02:18.5]} 16. Qc1 {[%clk 0:02:39.4]} 16... Kh7 {[%clk
0:02:15.5]} 17. c4 {[%clk 0:02:39.2]} 17... Nb4 {[%clk 0:02:15.2]} 18. Bf4
{[%clk 0:02:28.5]} 18... Qd8 {[%clk 0:02:04.1]} 19. Qe3 {[%clk 0:02:21.4]} 19...
e6 {[%clk 0:02:02.4]} 20. Rad1 {[%clk 0:02:20.5]} 20... g5 {[%clk 0:01:58.6]}
21. Bxg5 {[%clk 0:02:14.9]} 21... hxg5 {[%clk 0:01:59.5]} 22. Qxg5 {[%clk
0:02:15.1]} 22... Bh6 {[%clk 0:01:30]} 23. Qh4 {[%clk 0:02:14.9]} 23... Nd7
{[%clk 0:01:29.8]} 24. Qe4+ {[%clk 0:02:04]} 24... f5 {[%clk 0:01:17.9]} 25. Qe2
{[%clk 0:02:03.4]} 25... Nxe5 {[%clk 0:01:04.6]} 26. Qxe5 {[%clk 0:02:04.3]}
26... Rf6 {[%clk 0:01:04.6]} 27. c5 {[%clk 0:01:55.7]} 27... Nd5 {[%clk
0:00:51.3]} 28. Bxd5 {[%clk 0:01:47.6]} 28... cxd5 {[%clk 0:00:50.3]} 29. cxb6
{[%clk 0:01:47.5]} 29... Rg6 {[%clk 0:00:46.3]} 30. Nxf5 {[%clk 0:01:27]} 30...
exf5 {[%clk 0:00:43.5]} 31. Qxf5 {[%clk 0:01:27.9]} 31... Qg5 {[%clk 0:00:36.9]}
32. Qxg5 {[%clk 0:01:07.5]} 32... Bxg5 {[%clk 0:00:37.8]} 0-1

[Event "Early-Titled-Tuesday-Blitz-September-05-2023"]
[Site "Chess.com"]
[Date "2023.09.05"]
[Round "10"]
[White "Vsevolod_Ovchinnikov"]
[Black "Dixit_Nikhil"]
[Result "0-1"]
[WhiteElo "2589"]
[BlackElo "2523"]
[TimeControl "180+1"]
[EndTime "9:52:45 PDT"]
[Termination "Dixit_Nikhil won by resignation"]

1. d4 {[%clk 0:03:00.9]} 1... a6 {[%clk 0:03:00.9]} 2. e4 {[%clk 0:03:00.5]}
2... b6 {[%clk 0:03:00.2]} 3. Bd3 {[%clk 0:03:00.9]} 3... g6 {[%clk 0:03:00.8]}
4. f4 {[%clk 0:03:00]} 4... Bg7 {[%clk 0:03:01.2]} 5. c3 {[%clk 0:03:00.6]} 5...
Bb7 {[%clk 0:03:01.7]} 6. Nf3 {[%clk 0:03:01.1]} 6... e6 {[%clk 0:03:02]} 7. Qe2
{[%clk 0:03:01.3]} 7... d6 {[%clk 0:03:02.6]} 8. Nbd2 {[%clk 0:03:00.4]} 8...
Ne7 {[%clk 0:03:03.2]} 9. Nf1 {[%clk 0:03:00.6]} 9... Nd7 {[%clk 0:03:03.9]} 10.
h4 {[%clk 0:02:58.6]} 10... h5 {[%clk 0:03:03]} 11. Ng5 {[%clk 0:02:55.3]} 11...
c5 {[%clk 0:03:02.6]} 12. Be3 {[%clk 0:02:54.8]} 12... cxd4 {[%clk 0:03:01.5]}
13. cxd4 {[%clk 0:02:55.7]} 13... Nc6 {[%clk 0:03:00.1]} 14. Nf3 {[%clk
0:02:53.7]} 14... Nb4 {[%clk 0:02:59.2]} 15. Bb1 {[%clk 0:02:51.1]} 15... a5
{[%clk 0:02:52.3]} 16. a3 {[%clk 0:02:50.6]} 16... Ba6 {[%clk 0:02:51.3]} 17.
Qd1 {[%clk 0:02:38.2]} 17... Nc6 {[%clk 0:02:50.8]} 18. Ng3 {[%clk 0:02:19.4]}
18... Nf6 {[%clk 0:02:45.8]} 19. Bd3 {[%clk 0:02:03.2]} 19... Ng4 {[%clk
0:02:30.2]} 20. Bg1 {[%clk 0:01:57.5]} 20... Bxd3 {[%clk 0:02:23.1]} 21. Qxd3
{[%clk 0:01:58.4]} 21... O-O {[%clk 0:02:23.4]} 22. Rd1 {[%clk 0:01:35.9]} 22...
d5 {[%clk 0:02:19.4]} 23. e5 {[%clk 0:01:34.6]} 23... a4 {[%clk 0:02:19.5]} 24.
Be3 {[%clk 0:01:16.9]} 24... Na5 {[%clk 0:02:16.3]} 25. Bc1 {[%clk 0:01:00.9]}
25... Rc8 {[%clk 0:02:13.4]} 26. Nf1 {[%clk 0:00:55.9]} 26... Nb3 {[%clk
0:02:10.6]} 27. Be3 {[%clk 0:00:54.9]} 27... Qc7 {[%clk 0:01:56.8]} 28. N3d2
{[%clk 0:00:19.7]} 28... Qc2 {[%clk 0:01:53.9]} 29. Nxb3 {[%clk 0:00:17.6]}
29... axb3 {[%clk 0:01:51.6]} 30. Qd2 {[%clk 0:00:09.2]} 30... Rc4 {[%clk
0:01:47.9]} 31. g3 {[%clk 0:00:08.8]} 31... Rfc8 {[%clk 0:01:47.7]} 32. Ke2
{[%clk 0:00:08.8]} 32... Qe4 {[%clk 0:01:46.3]} 33. Nh2 {[%clk 0:00:02.4]} 33...
Rc2 {[%clk 0:01:46]} 0-1